Cogmind - Beta 11.1 @@@ ROGUE MODE // 2022.08.28 @ 02:32:26 Player: Okkudo Result: Self-destructed Performance ------------- Evolutions (1) 500 Regions Visited (2) 400 Robots Destroyed (19) 95 Value Destroyed (455) 455 Prototype IDs (0) 0 Alien Tech Used (0) 0 Bonus (0) 0 TOTAL SCORE: 1450 Bonus ------- None Cogmind --------- Core Integrity 310/400 Matter 226/300 Energy 250/250 System Corruption 0% Temperature Cool (0) Movement Walking (120) Location -9/Materials Parts ------- > --- POWER (1) -------- Ion Engine > --- PROPULSION (3) --- Aluminum Leg Aluminum Leg Aluminum Leg > --- UTILITY (3) ------ Medium Storage Unit > --- WEAPON (2) ------- Light Assault Rifle > --- INVENTORY (10) --- Aluminum Leg Improved Heat Sink Small Storage Unit ECM Suite EM Pulse Gun Light Assault Rifle Peak State ------------ > --- POWER ------------ Light Ion Engine > --- PROPULSION ------- Aluminum Leg Aluminum Leg > --- UTILITY ---------- Small Storage Unit Sensor Array > --- WEAPON ----------- Light Assault Rifle Light Assault Rifle > --- INVENTORY -------- EM Pulse Gun Grenade Launcher [Rating: 7] Favorites ----------- Power Light Ion Engine Engine Light Ion Engine Propulsion Aluminum Leg Leg Aluminum Leg Utility Small Storage Unit Device Sensor Array Storage Small Storage Unit Weapon Light Assault Rifle Energy Gun EM Pulse Gun Ballistic Gun Light Assault Rifle Launcher Grenade Launcher Build | -11 -10 -9 ------- Run | Scr Mat Mat Slots Evolved 2 | . . 2 Power . | . . . Propulsion 1 | . . 1 Utility 1 | . . 1 Weapon . | . . . Parts Attached 20 | 6 10 4 Power 3 | 1 1 1 Engine 3 | 1 1 1 Core . | . . . Reactor . | . . . Propulsion 8 | 2 4 2 Treads . | . . . Leg 8 | 2 4 2 Wheel . | . . . Hover . | . . . Flight . | . . . Utility 3 | 1 2 . Device 1 | . 1 . Storage 2 | 1 1 . Processor . | . . . Hackware . | . . . Protection . | . . . Artifact . | . . . Weapon 6 | 2 3 1 Energy Gun 1 | . 1 . Energy Cannon . | . . . Ballistic Gun 4 | 2 2 . Ballistic Cannon . | . . . Launcher 1 | . . 1 Special Weapon . | . . . Impact Weapon . | . . . Slashing Weapon . | . . . Piercing Weapon . | . . . Special Melee Weapon . | . . . Unidentified Prototypes . | . . . Parts Lost 5 | . 2 3 Power 1 | . 1 . Propulsion 1 | . . 1 Utility 1 | . . 1 Weapon 2 | . 1 1 Highest Loss Streak 2 | . 1 2 To Critical Strikes . | . . . Average Slot Usage (%) 87 | . 90 72 Engine 10 | . 10 11 Leg 27 | . 28 26 Device 7 | . 8 3 Storage 13 | . 14 11 Energy Gun 3 | . 2 7 Ballistic Gun 22 | . 25 11 Naked Turns . | . . . Heaviest Build 19 | 10 19 19 Greatest Support 30 | 20 20 30 Greatest Overweight (x) 1 | . . 1 Average Overweight (x) . | . . . Largest Inventory Capacity 10 | 8 10 10 Average Capacity 8 | 6 8 10 Most Carried 7 | 2 7 7 Average Carried 3 | . 2 5 Final Capacity 10 | 8 10 10 Final Carried 6 | 1 5 6 Class Distribution -------------------- 80% | Mutant 19% | Scavenger-Mutant Dominant Class ---------------- Mutant | -10/Materials Scavenger-Mutant | -9/Materials Resources | -11 -10 -9 ----------- Run | Scr Mat Mat Matter Collected 474 | 255 175 44 Remotely . | . . . Salvage Created 667 | 78 458 131 Parts 40 | 2 31 7 Haulers Intercepted 1 | . 1 . Recyclers Shooed 1 | . 1 . Parts Field Recycled . | . . . Retrieved Matter . | . . . Parts Self-Destructed . | . . . Prevented . | . . . Kills | -11 -10 -9 ------- Run | Scr Mat Mat Combat Hostiles Destroyed 17 | . 14 3 Guns 17 | . 14 3 Classes Destroyed 4 | 1 3 . Hauler 1 | . 1 . Recycler 1 | 1 . . Swarmer 6 | . 6 . Grunt 11 | . 8 3 Best Kill Streak 3 | 1 3 2 Combat Bots Only 3 | . 3 2 Max Kills in Single Turn 1 | 1 1 1 Gunslinging . | . . . Exploded . | . . . Melee . | . . . Uniques/NPCs Destroyed . | . . . Combat | -11 -10 -9 -------- Run | Scr Mat Mat Damage Taken 1021 | . 545 476 Core 210 | . 120 90 Absorbed by Shields . | . . . Core Remaining (%) 76 | 100 52 . Volleys Fired 83 | 3 60 20 Largest 2 | 2 2 2 Hottest 60 | 40 60 60 Shots Fired 155 | 6 116 33 Gun 148 | 6 116 26 Cannon . | . . . Launcher 7 | . . 7 Special . | . . . Kinetic 125 | 6 106 13 Thermal . | . . . Explosive 7 | . . 7 Electromagnetic 23 | . 10 13 Robot Hit Streak 13 | 5 12 13 Robot Miss Streak 3 | . 3 1 Penetration Max . | . . . Secondary Targets . | . . . Shots Hit Robots 99 | 5 69 25 Core Hits 44 | 3 31 10 Critical Kills . | . . . Critical Parts Destroyed . | . . . Critical Strikes . | . . . Melee Attacks . | . . . Impact . | . . . Slashing . | . . . Piercing . | . . . Sneak Attacks . | . . . Combat Hostiles . | . . . Follow-up Attacks . | . . . Damage Inflicted 929 | 41 588 300 Guns 791 | 41 559 191 Cannons . | . . . Explosions 109 | . . 109 Melee . | . . . Ramming 29 | . 29 . Kinetic 587 | 41 479 67 Thermal . | . . . Explosive 109 | . . 109 Electromagnetic 204 | . 80 124 Impact . | . . . Slashing . | . . . Piercing . | . . . Highest Corruption . | . . . Average Corruption . | . . . Corruption Purged . | . . . Corruption Blocked . | . . . Overload Shots . | . . . Overflow Damage . | . . . Projectiles . | . . . Explosions . | . . . Melee . | . . . Knockbacks . | . . . Impact . | . . . Kinetic . | . . . Secondary . | . . . Self-Inflicted Damage . | . . . Shots . | . . . Rammed . | . . . Targets Rammed 10 | . 10 . Kicked 10 | . 10 . Crushed . | . . . Highest Temperature 95 | . 26 95 Average Temperature 22 | . 7 37 Received Heat Transfer 468 | . 234 234 Siege Activations . | . . . Robots Corrupted . | . . . Combat Hostiles . | . . . Parts Fried 2 | . 1 1 Impact Corruptions . | . . . Robots Melted . | . . . Combat Hostiles . | . . . Parts Melted . | . . . Heat Transferred . | . . . Parts Sabotaged . | . . . Parts Stolen . | . . . Parts Stripped . | . . . Power Chain Reactions . | . . . Missiles Intercepted . | . . . Alert | -11 -10 -9 ------- Run | Scr Mat Mat Peak Influence 267 | 5 267 225 Initial 112 | . 3 112 Average 108 | 2 107 161 Maximum Alert Level 1 | . 1 1 Low Security (%) 84 | 100 83 79 Level 1 15 | . 16 20 Level 2 . | . . . Level 3 . | . . . Level 4 . | . . . Level 5 . | . . . High Security . | . . . Max Security . | . . . Squads Dispatched 3 | . 3 . Investigation 1 | . 1 . Extermination . | . . . Reinforcement 2 | . 2 . Assault . | . . . Garrison . | . . . Intercept . | . . . Searches Triggered . | . . . Construction Impeded . | . . . Haulers Reinforced . | . . . Active Scanning Responses . | . . . Cargo Convoy Interrupts . | . . . Stealth | -11 -10 -9 --------- Run | Scr Mat Mat Distress Signals 2 | . 2 . Communications Jammed . | . . . Distress Signals . | . . . Times Spotted 25 | . 19 6 Peak Tracking Total 6 | . 6 3 Tactical Retreats 3 | . 3 . Traps | -11 -10 -9 ------- Run | Scr Mat Mat Traps Triggered . | . . . Indirectly . | . . . Trap Hack Attempts . | . . . Triggered . | . . . Disarmed . | . . . Reprogrammed . | . . . Reused . | . . . Traps Extracted . | . . . Installed . | . . . Triggered . | . . . Machines | -11 -10 -9 ---------- Run | Scr Mat Mat Machines Disabled . | . . . Max in Single Turn . | . . . Machines Sabotaged . | . . . Garrisons Compromised . | . . . Overloaded Fab Kills . | . . . Hacking | -11 -10 -9 --------- Run | Scr Mat Mat Machines Accessed 2 | . 2 . Terminals 2 | . 2 . Fabricators . | . . . Repair Stations . | . . . Recycling Units . | . . . Scanalyzers . | . . . Garrison Access . | . . . Total Hacks 5 | . 5 . Successful 3 | . 3 . Failed 2 | . 2 . Catastrophic . | . . . Database Lockouts . | . . . Manual 5 | . 5 . Terminals 5 | . 5 . Fabricators . | . . . Repair Stations . | . . . Recycling Units . | . . . Scanalyzers . | . . . Garrison Access . | . . . Terminal Hacks 1 | . 1 . Branch Access Points 1 | . 1 . Fabricator Hacks . | . . . Repair Station Hacks . | . . . Recycling Unit Hacks . | . . . Scanalyzer . | . . . Garrison Access Hacks . | . . . Unauthorized Hacks 2 | . 2 . Terminals 2 | . 2 . Botnet 2 | . 2 . Fabricators . | . . . Repair Stations . | . . . Recycling Units . | . . . Scanalyzers . | . . . Garrison Access . | . . . Data Cores Recovered . | . . . Used . | . . . Hacking Detections 1 | . 1 . Full Trace Events 1 | . 1 . Feedback Events . | . . . Feedback Blocked . | . . . Robot Schematics Acquired . | . . . Robots Built . | . . . Authchips . | . . . Time . | . . . Total Robot Build Rating . | . . . Part Schematics Acquired . | . . . Parts Built . | . . . Authchips . | . . . Time . | . . . Total Part Build Rating . | . . . Parts Repaired . | . . . Time . | . . . Parts Recycled . | . . . Recycled Matter . | . . . Retrieved Matter . | . . . Retrieved Components . | . . . Parts Scanalyzed . | . . . Part Schematics Acquired . | . . . Parts Damaged . | . . . Bothacking | -11 -10 -9 ------------ Run | Scr Mat Mat Used RIF Installer . | . . . Robots Hacked . | . . . Non-combat . | . . . Combat . | . . . Robot Hacks Applied . | . . . Relay Couplers Released . | . . . Fabnet Peak Effective % . | . . . Robots Rewired . | . . . Allies Hacked . | . . . Hacks Repelled . | . . . Allies | -11 -10 -9 -------- Run | Scr Mat Mat Total Allies . | . . . Largest Group . | . . . Highest-Rated Group . | . . . Highest-Rated Ally . | . . . Total Orders . | . . . Ally Attacks . | . . . Total Damage . | . . . Kills . | . . . Allies Corrupted . | . . . Allies Melted . | . . . Intel | -11 -10 -9 ------- Run | Scr Mat Mat Robot Analysis Total . | . . . Derelict Logs Recovered . | . . . Drone Launches . | . . . Drone Recoveries . | . . . Exploration | -11 -10 -9 ------------- Run | Scr Mat Mat Turns Passed 872 | 70 661 141 Spaces Moved 438 | 43 336 59 Core 2 | 2 . . Treads . | . . . Legs 436 | 41 336 59 Wheels . | . . . Hover . | . . . Flight . | . . . Fastest Speed 50 | 50 120 120 Average Speed 120 | 116 120 123 Slowest Speed 190 | 120 120 190 Overloaded Moves . | . . . Propulsion Burnouts . | . . . Robots Hopped . | . . . Cave-ins Triggered . | . . . Exploration Rate (%) 12 | 4 30 4 Regions Visited 2 Branch Regions . Pre-discovered Areas . | . . . Known Exits Taken . | . . . Unknown Exits Taken 2 | 1 1 . Scrap Searched . | . . . Spaces Dug . | . . . Terrain Destroyed 20 | . . 20 Melee . | . . . Projectile . | . . . AOE 20 | . . 20 Terrain Rammed . | . . . Walls Destroyed . | . . . Machines Disabled . | . . . Actions | -11 -10 -9 --------- Run | Scr Mat Mat Total 651 | 58 497 96 Wait 69 | . 61 8 Move 436 | 42 335 59 Hop . | . . . Pick Up 25 | 7 14 4 Fast Attach . | . . . Attach 11 | 6 3 2 Detach . | . . . Swap 9 | . 7 2 Drop 8 | . 7 1 Fire 83 | 3 60 20 Melee . | . . . Ram . | . . . Kick 10 | . 10 . Crush . | . . . Escape Stasis . | . . . Rewire . | . . . Trap . | . . . Miscellaneous . | . . . Route ------- -11/Scrapyard -10/Materials (discovered 2 exits: [*Mat] / Min) -9/Materials History --------- Turn | Location | Event 17 | -11/Scrapyard | Discovered new exit (range 16) 71 | -11/Scrapyard | Entered Materials 306 | -10/Materials | Build established: Mutant 415 | -10/Materials | Identified exit to Mines 486 | -10/Materials | Discovered new exit (range 16) 732 | -10/Materials | Entered another Materials area 732 | -9/Materials | Evolved 2 slots: Propulsion x1, Utility x1 873 | -9/Materials | Self-destructed Last Messages --------------- 00729_ Dropped Aluminum Leg. PARAMETERS=PROPULSION+1,UTILITY+1 LOCATION=UNKNOWN GOAL=ESCAPE 00760_ Heat Sink fried. 00760_ G-34 Mercenary destroyed. 00779_ Sensor Array destroyed. 00781_ Critical hit (Burn: +37). 00783_ G-47 Trooper misfires. 00787_ Aluminum Leg destroyed. 00788_ G-47 Trooper destroyed. 00795_ Acquired Aluminum Leg. 00802_ Acquired 33 matter. 00809_ Acquired Ion Engine. 00812_ Dropped Ion Engine. 00815_ Acquired 10 matter. 00821_ Acquired Imp. Heat Sink. 00854_ The unstable cave ceiling collapses. 00858_ Grenade Launcher destroyed. 00872_ Acquired 1 matter. Map ----- +----------------------------------------------------+ | ?????????????????????????????????????????????????? | | ????????????????????????#####????????????????????? | | ??????????????????????## ##??????????????????? | | ?????????????????????? #??????????????????? | | ??????????????????????? ??????????????????? | | ??????????????????????? #??????????????????? | | ??????????????????????? ???????????????????? | | ??????????????????????? ???????????????????? | | ???????????????????????? ???????????????????? | | ???????????????????????? ????????????????????? | | ???????????????????????? ????????????????????? | | ????????????????????????# #????????????????????? | | ????????????????????????#g #????????????????????? | | ????????????????????????# #????????????????????? | | ????????????????????????# g #????????????????????? | | ????????????????????????# #????????????????????? | | ????????????????????????# #????????????????????? | | ????????????????????????# #????????????????????? | | ????????????????????????# #????????????????????? | | ????????????????????????# #????????????????????? | | ????????????????????????# #????????????????????? | | ?????????????????######## #????????????????????? | | ?????????????????# # #????????????????????? | | ?????????????????# """**# #????????????????????? | | ?????????????????# """[%+ % #????????????????????? | | ?????????????????# """ *#@ #????????????????????? | | ?????????????????# # #????????????????????? | | ?????????????????# # #????????????????????? | | ?????????????????######## #????????????????????? | | ????????????????????????# #????????????????????? | | ????????????????????????# #????????????????????? | | ????????????????????????# #????????????????????? | | ????????????????????????# #????????????????????? | | ????????????????????????# #????????????????????? | | ????????????????????????# #????????????????????? | | ????????????????????????# #????????????????????? | | ????????????????????????# #????????????????????? | | ????????????????????????#####????????????????????? | | ?????????????????????????????????????????????????? | | ?????????????????????????????????????????????????? | | ?????????????????????????????????????????????????? | | ?????????????????????????????????????????????????? | | ?????????????????????????????????????????????????? | | ?????????????????????????????????????????????????? | | ?????????????????????????????????????????????????? | | ?????????????????????????????????????????????????? | | ?????????????????????????????????????????????????? | | | | | | | +----------------------------------------------------+ Best States ------------- Heat Dissipation 28 Energy Generation 10 Energy Capacity 250 Matter Stores 300 Matter Capacity 300 Sight Range 16 Robot Scan Range 14 Terrain Scan Density 10 Evasion (%) 55 Item Schematics ----------------- None Robot Schematics ------------------ None Fabricated ------------ Nothing Alien Tech Used ----------------- None Achievements -------------- None Challenges ------------ None Game ------ Seed RegenerativeThunderBrace Manual? 0 Play Time 00:15:33 Cumulative 37.4 hours Start 2022.08.28 @ 02:15:53 End 2022.08.28 @ 02:32:26 Sessions 1 Manual Loads 0 Difficulty Rogue Special Mode None Game No. 86 Rogue 86 Adventurer 0 Explorer 0 Win Type - Total 0 Types 0/0/0/0/0/0/0/0/0 Lore% 25 Gallery% 24 Achievement% 23 Wizard Run 0 Options --------- ASCII 0 Keyboard 0 Movement Numpad Keybinds 0 Fullscreen 1 Font 12/Smallcaps Map View 83x54 Tactical HUD 1 Map Filters NONE Filters NONE Steam 1 RUN: 9c8a69f7-945c-42eb-8c43-bc3243caffa7